[Event "GER-ch Youth U12 2020"]
[Site "Willingen"]
[Date "2020.10.30"]
[Round "5.8"]
[White "Müller, Maximilian"]
[Black "Krüger, Arthur"]
[Result "1-0"]
[ECO "C42"]
[WhiteElo "1691"]
[BlackElo "1704"]
[Annotator "NA RC"]
[PlyCount "97"]
[EventDate "2020.10.27"]
[EventType "swiss"]
[EventRounds "7"]
[EventCountry "GER"]
[SourceTitle "playchess.com"]
[Source "ChessBase"]
[SourceQuality "1"]
[TimeControl "40/5400+30:1800+30"]

1. e4 {[%emt 0:00:00]} e5 {[%emt 0:00:00]} 2. Nf3 {[%emt 0:00:00]} Nf6 {[%emt 0:00:00]} 3. Nxe5 {[%emt 0:00:00]} d6 {[%emt 0:00:00]} 4. Nf3 {[%emt 0:00:00]} Nxe4 {[%emt 0:02:37]} 5. Nc3 {[%emt 0:00:00]} Nxc3 {[%emt 0:00:06]} 6. dxc3 {[%emt 0:00:12]} Be7 {[%emt 0:00:10]} 7. Bd3 {[%emt 0:00:56]} Nd7 {[%emt 0:00:17]} 8. Bf4 {[%emt 0:02:39]} Nf6 {[%emt 0:00:33]} 9. Qd2 {[%emt 0:03:11]} O-O {[%emt 0:01:13]} 10. O-O-O {[%emt 0:02:04]} Be6 {[%emt 0:00:34]} 11. Kb1 {[%emt 0:02:25]} c5 {[%emt 0:02:03]} 12. Ng5 {[%emt 0:12:34]} Bd7 {[%emt 0:17:10]} 13. h4 {[%emt 0:07:59]} d5 {[%emt 0:07:30]} 14. f3 {[%emt 0:28:08]} c4 {[%emt 0:06:56]} 15. Be2 {[%emt 0:00:02]} b5 {[%emt 0:01:28]} 16. g4 {[%emt 0:00:14]} b4 {[%emt 0:03:07]} 17. cxb4 {[%emt 0:13:28]} c3 {[%emt 0:05:17]} 18. Qxc3 {[%emt 0:04:50]} a5 {[%emt 0:06:21]} 19. bxa5 {[%emt 0:00:18]} Rc8 {[%emt 0:02:13]} 20. Qd2 {[%emt 0:00:17]} Ba4 {[%emt 0:02:10]} 21. Bd3 {[%emt 0:00:46]} d4 {[%emt 0:04:36]} 22. Be5 {[%emt 0:01:47]} Nd5 {[%emt 0:05:27]} 23. Bxd4 {[%emt 0:01:36]} Nb4 {[%emt 0:08:32]} 24. b3 {[%emt 0:02:40]} Bb5 {[%emt 0:09:58]} 25. c4 {[%emt 0:02:04]} Qxa5 {[%emt 0:08:29]} 26. Bc3 {[%emt 0:05:08]} Bc6 {[%emt 0:02:17]} 27. Bxb4 {[%emt 0:00:33]} Bxb4 {[%emt 0:00:24]} 28. Qc2 {[%emt 0:00:07]} h6 {[%emt 0:00:21]} 29. Ne4 {[%emt 0:00:12]} Ra8 {[%emt 0:01:13]} 30. g5 {[%emt 0:00:25]} h5 {[%emt 0:00:11]} 31. Rhf1 {[%emt 0:00:48]} Rfb8 {[%emt 0:00:53]} 32. Ng3 {[%emt 0:01:23]} Ba4 {[%emt 0:01:22]} 33. Bh7+ {[%emt 0:03:39]} Kh8 {[%emt 0:00:19]} 34. Rd3 {[%emt 0:00:15]} Ba3 {[%emt 0:02:16]} 35. Be4 {[%emt 0:00:38]} Ra7 {[%emt 0:00:33]} 36. Rfd1 {[%emt 0:00:55]} g6 {[%emt 0:00:45]} 37. Qc3+ {[%emt 0:00:22]} Qxc3 {[%emt 0:00:36]} 38. Rxc3 {[%emt 0:00:10]} Bc5 {[%emt 0:00:24]} 39. Rcd3 {[%emt 0:00:15]} Kg7 {[%emt 0:00:26]} 40. f4 {[%emt 0:00:52]} Re7 {[%emt 0:00:35]} 41. f5 {[%emt 0:30:36]} Ree8 {[%emt 0:01:40]} 42. Kc2 {[%emt 0:00:00]} Bf2 {[%emt 0:02:07]} 43. Bh1 {[%emt 0:00:00]} Bxg3 {[%emt 0:01:40]} 44. f6+ {[%emt 0:00:00]} Kf8 {[%emt 0:00:42]} 45. Rxg3 {[%emt 0:00:00]} Re2+ {[%emt 0:00:45]} 46. Rd2 {[%emt 0:00:00]} Re1 {[%emt 0:00:25]} 47. Bg2 {[%emt 0:00:00]} Be8 {[%emt 0:00:57]} 48. Rgd3 {[%emt 0:00:00]} Rb6 {[%emt 0:01:01]} 49. c5 {[%emt 0:00:00]} 1-0

[Event "GER-ch Youth U12 2020"]
[Site "Willingen"]
[Date "2020.10.30"]
[Round "5.9"]
[White "Sauer, Tim"]
[Black "Toth, Luca"]
[Result "1-0"]
[ECO "A25"]
[WhiteElo "1729"]
[BlackElo "1680"]
[Annotator "NA RC"]
[PlyCount "117"]
[EventDate "2020.10.27"]
[EventType "swiss"]
[EventRounds "7"]
[EventCountry "GER"]
[SourceTitle "playchess.com"]
[Source "ChessBase"]
[SourceQuality "1"]
[TimeControl "40/5400+30:1800+30"]

1. c4 {[%emt 0:00:00]} e5 {[%emt 0:00:00]} 2. Nc3 {[%emt 0:00:00]} Nc6 {[%emt 0:00:00]} 3. g3 {[%emt 0:00:00]} Nf6 {[%emt 0:00:02]} 4. Bg2 {[%emt 0:00:00]} g6 {[%emt 0:00:37]} 5. e4 {[%emt 0:00:03]} Bg7 {[%emt 0:00:42]} 6. Nge2 {[%emt 0:00:08]} O-O {[%emt 0:01:16]} 7. O-O {[%emt 0:00:10]} d6 {[%emt 0:01:34]} 8. d3 {[%emt 0:00:16]} Be6 {[%emt 0:00:43]} 9. h3 {[%emt 0:02:16]} Qd7 {[%emt 0:01:42]} 10. Kh2 {[%emt 0:00:16]} Rfd8 {[%emt 0:02:29]} 11. f4 {[%emt 0:00:33]} exf4 {[%emt 0:01:42]} 12. Nxf4 {[%emt 0:07:59]} Qe7 {[%emt 0:03:12]} 13. g4 {[%emt 0:06:35]} Nd4 {[%emt 0:08:44]} 14. Be3 {[%emt 0:04:04]} Nd7 {[%emt 0:06:57]} 15. Ncd5 {[%emt 0:02:29]} Bxd5 {[%emt 0:05:53]} 16. Nxd5 {[%emt 0:02:00]} Be5+ {[%emt 0:00:18]} 17. Kg1 {[%emt 0:04:20]} Qh4 {[%emt 0:14:12]} 18. Bf2 {[%emt 0:00:36]} Qh6 {[%emt 0:03:56]} 19. Nxc7 {[%emt 0:04:07]} Qf4 {[%emt 0:11:23]} 20. Re1 {[%emt 0:00:31]} Qh2+ {[%emt 0:08:04]} 21. Kf1 {[%emt 0:00:11]} Rab8 {[%emt 0:05:01]} 22. Nd5 {[%emt 0:02:46]} Bg7 {[%emt 0:01:00]} 23. Re3 {[%emt 0:01:34]} Qe5 {[%emt 0:02:06]} 24. Bg3 {[%emt 0:03:13]} Qe6 {[%emt 0:00:31]} 25. g5 {[%emt 0:08:48]} h6 {[%emt 0:10:20]} 26. Bf4 {[%emt 0:05:21]} Kh7 {[%emt 0:02:36]} 27. h4 {[%emt 0:01:47]} h5 {[%emt 0:00:43]} 28. Bh3 {[%emt 0:00:23]} Qe8 {[%emt 0:03:28]} 29. Bxd6 {[%emt 0:00:48]} Rbc8 {[%emt 0:00:14]} 30. Bg3 {[%emt 0:03:10]} Rc6 {[%emt 0:02:28]} 31. Rc1 {[%emt 0:05:09]} f6 {[%emt 0:01:53]} 32. Bf4 {[%emt 0:07:29]} Qf7 {[%emt 0:00:48]} 33. Kg2 {[%emt 0:01:08]} Rf8 {[%emt 0:00:55]} 34. Qf1 {[%emt 0:02:09]} Nb6 {[%emt 0:00:40]} 35. Nb4 {[%emt 0:01:53]} fxg5 {[%emt 0:00:35]} 36. Bxg5 {[%emt 0:00:19]} Qxf1+ {[%emt 0:00:17]} 37. Rxf1 {[%emt 0:00:09]} Rxf1 {[%emt 0:00:32]} 38. Kxf1 {[%emt 0:00:09]} Rc5 {[%emt 0:00:11]} 39. Nd5 {[%emt 0:06:19]} Rc6 {[%emt 0:00:40]} 40. Kg2 {[%emt 0:02:34]} Ne6 {[%emt 0:00:49]} 41. Bxe6 {[%emt 0:31:27]} Rxe6 {[%emt 0:30:07]} 42. Nxb6 {[%emt 0:00:15]} Rxb6 {[%emt 0:00:38]} 43. b3 {[%emt 0:00:06]} Ra6 {[%emt 0:00:46]} 44. Re2 {[%emt 0:00:15]} Be5 {[%emt 0:00:00]} 45. Kf3 {[%emt 0:00:00]} Rd6 {[%emt 0:00:00]} 46. Rd2 {[%emt 0:00:00]} Bc3 {[%emt 0:00:00]} 47. Rd1 {[%emt 0:00:00]} Ra6 {[%emt 0:00:00]} 48. a4 {[%emt 0:00:00]} Rb6 {[%emt 0:00:00]} 49. Rb1 {[%emt 0:00:00]} Rd6 {[%emt 0:00:00]} 50. Ke2 {[%emt 0:00:00]} a5 {[%emt 0:00:00]} 51. Be3 {[%emt 0:00:00]} Kg7 {[%emt 0:00:00]} 52. Rd1 {[%emt 0:00:00]} Bf6 {[%emt 0:00:00]} 53. Bf2 {[%emt 0:00:00]} Kf7 {[%emt 0:00:00]} 54. d4 {[%emt 0:00:00]} Bg7 {[%emt 0:00:00]} 55. e5 {[%emt 0:00:00]} Rd7 {[%emt 0:00:00]} 56. Rd3 {[%emt 0:00:00]} Ke6 {[%emt 0:00:00]} 57. Rg3 {[%emt 0:00:00]} Kf7 {[%emt 0:00:00]} 58. Ke3 {[%emt 0:00:00]} Bh6+ {[%emt 0:00:00]} 59. Ke4 {[%emt 0:00:00]} 1-0

[Event "GER-ch Youth U12 2020"]
[Site "Willingen"]
[Date "2020.10.30"]
[Round "5.10"]
[White "Kiefhaber, Tobias"]
[Black "Sundui, Chinguun"]
[Result "0-1"]
[ECO "A46"]
[WhiteElo "1542"]
[BlackElo "1788"]
[Annotator "NA RC"]
[PlyCount "102"]
[EventDate "2020.10.27"]
[EventType "swiss"]
[EventRounds "7"]
[EventCountry "GER"]
[SourceTitle "playchess.com"]
[Source "ChessBase"]
[SourceQuality "1"]
[TimeControl "40/5400+30:1800+30"]

1. d4 {[%emt 0:00:00]} Nf6 {[%emt 0:00:00]} 2. Nf3 {[%emt 0:00:00]} e6 {[%emt 0:00:00]} 3. Bf4 {[%emt 0:00:11]} c5 {[%emt 0:00:22]} 4. c3 {[%emt 0:00:46]} b6 {[%emt 0:00:30]} 5. e3 {[%emt 0:00:33]} Bb7 {[%emt 0:00:50]} 6. Nbd2 {[%emt 0:01:14]} Be7 {[%emt 0:01:00]} 7. Bd3 {[%emt 0:03:02]} d5 {[%emt 0:04:59]} 8. O-O {[%emt 0:02:20]} O-O {[%emt 0:00:43]} 9. Rc1 {[%emt 0:08:05]} Nbd7 {[%emt 0:02:57]} 10. h3 {[%emt 0:07:27]} a6 {[%emt 0:09:28]} 11. Ne5 {[%emt 0:10:59]} b5 {[%emt 0:06:57]} 12. Bh2 {[%emt 0:02:44]} Ne4 {[%emt 0:06:07]} 13. Nxd7 {[%emt 0:04:23]} Qxd7 {[%emt 0:00:41]} 14. f3 {[%emt 0:00:19]} Nxd2 {[%emt 0:06:14]} 15. Qxd2 {[%emt 0:00:27]} cxd4 {[%emt 0:11:45]} 16. cxd4 Rac8 {[%emt 0:01:36]} 17. f4 {[%emt 0:05:01]} f5 {[%emt 0:08:40]} 18. g4 {[%emt 0:03:19]} fxg4 {[%emt 0:07:34]} 19. hxg4 {[%emt 0:00:09]} g6 {[%emt 0:01:18]} 20. Rxc8 {[%emt 0:06:35]} Bxc8 {[%emt 0:05:13]} 21. Qg2 {[%emt 0:04:47]} Rf7 {[%emt 0:04:46]} 22. Qh3 {[%emt 0:05:15]} Rg7 {[%emt 0:01:57]} 23. Kh1 {[%emt 0:03:13]} e5 {[%emt 0:02:06]} 24. f5 {[%emt 0:04:15]} e4 {[%emt 0:02:02]} 25. Bxe4 {[%emt 0:08:52]} dxe4 {[%emt 0:00:39]} 26. f6 {[%emt 0:00:06]} Rf7 {[%emt 0:02:01]} 27. fxe7 {[%emt 0:00:35]} Rxf1+ {[%emt 0:00:29]} 28. Qxf1 {[%emt 0:00:07]} Qxe7 {[%emt 0:00:20]} 29. Qf4 {[%emt 0:02:08]} g5 {[%emt 0:01:03]} 30. Qb8 {[%emt 0:03:50]} Qe6 {[%emt 0:02:59]} 31. Qc7 {[%emt 0:03:42]} Qxg4 {[%emt 0:03:25]} 32. Qd8+ {[%emt 0:00:24]} Kf7 {[%emt 0:00:33]} 33. Bd6 {[%emt 0:05:32]} Qh3+ {[%emt 0:01:51]} 34. Kg1 {[%emt 0:00:42]} Qxe3+ {[%emt 0:00:31]} 35. Kh1 {[%emt 0:00:44]} Qc1+ {[%emt 0:00:26]} 36. Kh2 {[%emt 0:00:26]} Qxb2+ {[%emt 0:00:41]} 37. Kg1 {[%emt 0:00:08]} Qxd4+ {[%emt 0:00:30]} 38. Kh1 {[%emt 0:00:15]} Qd1+ {[%emt 0:01:19]} 39. Kh2 {[%emt 0:00:05]} Qe2+ {[%emt 0:01:38]} 40. Kh1 {[%emt 0:00:32]} Qf3+ {[%emt 0:01:03]} 41. Kg1 {[%emt 0:30:07]} Qg4+ {[%emt 0:31:53]} 42. Kh1 {[%emt 0:00:46]} Qd7 {[%emt 0:00:00]} 43. Qf8+ {[%emt 0:00:00]} Kg6 {[%emt 0:00:00]} 44. Qg8+ {[%emt 0:00:00]} Kh5 {[%emt 0:00:00]} 45. Qd5 {[%emt 0:00:00]} Qh3+ {[%emt 0:00:00]} 46. Kg1 {[%emt 0:00:00]} Qe3+ {[%emt 0:00:00]} 47. Kh1 {[%emt 0:00:00]} Qf3+ {[%emt 0:00:00]} 48. Kg1 {[%emt 0:00:00]} Bh3 {[%emt 0:00:00]} 49. Qd2 {[%emt 0:00:00]} e3 {[%emt 0:00:00]} 50. Qc2 {[%emt 0:00:00]} Qf1+ {[%emt 0:00:00]} 51. Kh2 {[%emt 0:00:00]} Qf2+ {[%emt 0:00:00]} 0-1

[Event "GER-ch Youth U12 2020"]
[Site "Willingen"]
[Date "2020.10.30"]
[Round "5.11"]
[White "Uhlmann, Tim"]
[Black "Schreidl, Michael"]
[Result "1-0"]
[ECO "C44"]
[WhiteElo "1523"]
[BlackElo "1640"]
[Annotator "NA RC"]
[PlyCount "117"]
[EventDate "2020.10.27"]
[EventType "swiss"]
[EventRounds "7"]
[EventCountry "GER"]
[SourceTitle "playchess.com"]
[Source "ChessBase"]
[SourceQuality "1"]
[TimeControl "40/5400+30:1800+30"]

1. e4 {[%emt 0:00:00]} e5 {[%emt 0:00:00]} 2. Nf3 {[%emt 0:00:00]} Nc6 {[%emt 0:00:00]} 3. d4 {[%emt 0:00:00]} exd4 {[%emt 0:00:00]} 4. Bc4 {[%emt 0:00:00]} Bc5 {[%emt 0:00:00]} 5. O-O {[%emt 0:00:06]} Nge7 {[%emt 0:03:52]} 6. Ng5 {[%emt 0:08:57]} Ne5 {[%emt 0:02:20]} 7. Nxf7 {[%emt 0:05:35]} Nxf7 {[%emt 0:01:35]} 8. Bxf7+ {[%emt 0:00:10]} Kxf7 {[%emt 0:00:04]} 9. Qh5+ {[%emt 0:00:07]} g6 {[%emt 0:02:24]} 10. Qxc5 {[%emt 0:00:04]} Nc6 {[%emt 0:04:03]} 11. Qd5+ {[%emt 0:04:15]} Kg7 {[%emt 0:01:59]} 12. f4 {[%emt 0:00:34]} Qg8 {[%emt 0:03:09]} 13. Qg5 {[%emt 0:00:30]} h6 {[%emt 0:02:13]} 14. Qh4 {[%emt 0:04:31]} Kh7 {[%emt 0:05:29]} 15. Rf3 {[%emt 0:02:19]} Qd8 {[%emt 0:05:15]} 16. Qh3 {[%emt 0:04:36]} d5 {[%emt 0:07:23]} 17. f5 {[%emt 0:01:13]} g5 {[%emt 0:03:47]} 18. exd5 {[%emt 0:15:36]} Ne5 {[%emt 0:02:57]} 19. Rf2 {[%emt 0:05:35]} Rg8 {[%emt 0:10:29]} 20. Qg3 {[%emt 0:11:26]} Qxd5 {[%emt 0:02:55]} 21. h4 {[%emt 0:12:49]} gxh4 {[%emt 0:04:55]} 22. Qf4 {[%emt 0:01:31]} Rg4 {[%emt 0:08:54]} 23. Qxh6+ {[%emt 0:08:23]} Kg8 {[%emt 0:00:15]} 24. Qh5 {[%emt 0:00:42]} Qf7 {[%emt 0:06:40]} 25. Qxf7+ {[%emt 0:00:10]} Kxf7 {[%emt 0:00:26]} 26. Bf4 {[%emt 0:04:36]} Kf6 {[%emt 0:03:44]} 27. Nd2 {[%emt 0:00:39]} Kxf5 {[%emt 0:11:06]} 28. Bh2+ {[%emt 0:00:32]} Ke6 {[%emt 0:02:18]} 29. Re1 {[%emt 0:00:12]} Kd7 {[%emt 0:02:45]} 30. Rxe5 {[%emt 0:00:41]} b6 {[%emt 0:00:32]} 31. Rf7+ {[%emt 0:02:56]} Kc6 {[%emt 0:00:35]} 32. Ree7 {[%emt 0:01:07]} Kb5 {[%emt 0:00:55]} 33. Rxc7 {[%emt 0:00:28]} Ka6 {[%emt 0:00:15]} 34. a4 {[%emt 0:01:59]} Be6 {[%emt 0:00:31]} 35. Rg7 {[%emt 0:01:39]} h3 {[%emt 0:01:43]} 36. Rxg4 {[%emt 0:01:35]} Bxg4 {[%emt 0:00:05]} 37. b4 {[%emt 0:01:05]} Be2 {[%emt 0:00:30]} 38. Nb3 {[%emt 0:00:34]} hxg2 {[%emt 0:01:00]} 39. b5+ {[%emt 0:00:38]} Bxb5 {[%emt 0:00:06]} 40. axb5+ {[%emt 0:00:05]} Kxb5 {[%emt 0:00:02]} 41. Nxd4+ {[%emt 0:30:22]} Kb4 {[%emt 0:30:22]} 42. Bd6+ {[%emt 0:00:30]} Ka5 {[%emt 0:00:27]} 43. Nc6+ {[%emt 0:00:46]} Ka6 {[%emt 0:00:24]} 44. Kxg2 {[%emt 0:00:30]} b5 {[%emt 0:00:24]} 45. Nb4+ {[%emt 0:01:11]} Ka5 {[%emt 0:00:26]} 46. Rc6 {[%emt 0:01:03]} a6 {[%emt 0:00:05]} 47. c3 {[%emt 0:00:25]} Rg8+ {[%emt 0:01:04]} 48. Kf2 {[%emt 0:00:34]} Ra8 {[%emt 0:00:07]} 49. Bc7+ {[%emt 0:00:30]} Ka4 {[%emt 0:00:04]} 50. Rxa6+ {[%emt 0:00:14]} Rxa6 {[%emt 0:00:08]} 51. Nxa6 {[%emt 0:00:07]} Kb3 {[%emt 0:00:14]} 52. Be5 {[%emt 0:00:10]} Kc4 {[%emt 0:00:16]} 53. Nb4 {[%emt 0:00:20]} Kc5 {[%emt 0:00:11]} 54. Bd4+ {[%emt 0:00:08]} Kc4 {[%emt 0:00:04]} 55. Ke3 {[%emt 0:00:08]} Kb3 {[%emt 0:00:10]} 56. Ke4 {[%emt 0:00:17]} Ka3 {[%emt 0:00:19]} 57. Kd5 {[%emt 0:00:13]} Kb3 {[%emt 0:00:16]} 58. Kc5 {[%emt 0:00:15]} Ka4 {[%emt 0:00:18]} 59. Kb6 {[%emt 0:00:11]} 1-0

[Event "GER-ch Youth U12 2020"]
[Site "Willingen"]
[Date "2020.10.30"]
[Round "5.12"]
[White "Sommer, Justus"]
[Black "Grabs, Peter"]
[Result "1/2-1/2"]
[ECO "C15"]
[WhiteElo "1845"]
[BlackElo "1674"]
[Annotator "NA RC"]
[PlyCount "126"]
[EventDate "2020.10.27"]
[EventType "swiss"]
[EventRounds "7"]
[EventCountry "GER"]
[SourceTitle "playchess.com"]
[Source "ChessBase"]
[SourceQuality "1"]
[TimeControl "40/5400+30:1800+30"]

{[%evp 9,125,-30,-29,-31,43,31,59,52,107,112,117,32767,32767,32767,32767,6,20,8,109,100,106,90,110,102,108,-2,0,0,10,0,-3,-6,0,-9,0,0,0,0,12,0,0,-34,-10,-20,0,0,0,-33,0,0,0,0,0,0,0,32767,6,32767,32767,32767,32767,32767,32767,32767,32767,32767,0,0,0,0,0,0,0,0,0,0,0,0,0,0,0,0,0,0,0,0,0,0,0,0,0,0,32767,32767,32767,32767,0,0,0,0,0,0,0,0,0,32767,32767,32767,32767,32767,0,0,0,-28000,0,0,0,0]} 1. e4 {[%emt 0:00:07]} e6 {[%emt 0:00:00]} 2. d4 {[%emt 0:00:08]} d5 {[%emt 0:00:00]} 3. Nc3 {[%emt 0:00:08]} Bb4 {[%emt 0:00:00]} 4. Nge2 {[%emt 0:00:13]} Nf6 {[%emt 0:02:58]} 5. a3 {[%emt 0:01:09]} Bxc3+ {[%emt 0:03:01]} 6. Nxc3 {[%emt 0:00:12]} dxe4 {[%emt 0:00:41]} (6... Nxe4 $11 7. Nxe4 dxe4) 7. Bg5 {[%emt 0:00:46]} Nc6 {[%emt 0:01:37] C15: French: 3 Nc3 Bb4: Unusual White 4th moves.} 8. Bb5 {[%emt 0:01:22]} Bd7 {[%emt 0:00:50]} 9. Nxe4 {[%emt 0:01:28] Pin} h6 {[%emt 0:10:58]} 10. Nxf6+ {[%emt 0:05:19]} gxf6 {[%emt 0:00:12] [#]} 11. Be3 $146 {[%emt 0:01:03]} ({Predecessor:} 11. Bh4 Qe7 12. Qd2 e5 13. O-O-O Nxd4 14. Bxd7+ Qxd7 15. Bxf6 Qc6 16. Kb1 Qxf6 17. f4 {0-1 (37) Kestlane,H-Tillmann,M (1954) Piestany 2011}) 11... Ne7 {[%emt 0:02:06]} 12. Bxd7+ {[%emt 0:05:46]} Qxd7 {[%emt 0:00:54]} 13. Qf3 {[%emt 0:00:16]} Nd5 {[%emt 0:02:00]} (13... Qd5 $11 {remains equal.}) 14. c4 {[%emt 0:00:38]} Nxe3 {[%emt 0:03:10]} 15. fxe3 {[%emt 0:00:09]} O-O-O {[%emt 0:00:20]} 16. Qxf6 {[%emt 0:03:31]} Qc6 {[%emt 0:03:39] [#]} 17. c5 {[%emt 0:01:29]} ({And not} 17. Qxf7 Rdf8 $15) (17. O-O $1 $16) 17... Qxg2 {[%emt 0:01:02]} 18. O-O-O {[%emt 0:00:29]} Qg5 {[%emt 0:06:16]} 19. Qxf7 {[%emt 0:03:17]} Qxe3+ {[%emt 0:00:36] Double Attack} 20. Kb1 {[%emt 0:00:07]} Qe4+ {[%emt 0:02:25]} 21. Ka2 {[%emt 0:01:23]} Rxd4 {[%emt 0:08:01]} 22. Rxd4 {[%emt 0:00:33]} Qxd4 {[%emt 0:00:41]} 23. Qxe6+ {[%emt 0:00:11]} Qd7 {[%emt 0:01:26]} 24. Qc4 {[%emt 0:02:00]} Re8 {[%emt 0:02:35]} 25. Ka1 {[%emt 0:02:31]} Qe6 {[%emt 0:02:39]} 26. Qc3 {[%emt 0:05:06]} Qe5 {[%emt 0:02:26]} 27. Qh3+ {[%emt 0:01:10]} Qe6 {[%emt 0:00:45]} 28. Qg3 {[%emt 0:00:54]} Qe5 {[%emt 0:02:43]} 29. Qg6 {[%emt 0:00:33]} Qe6 {[%emt 0:04:06]} 30. Rg1 {[%emt 0:00:34]} Qxg6 {[%emt 0:04:02]} 31. Rxg6 {[%emt 0:00:23]} h5 {[%emt 0:00:04]} 32. Rg5 {[%emt 0:00:20]} h4 {[%emt 0:02:21]} 33. Rg4 {[%emt 0:00:11]} h3 {[%emt 0:02:05]} 34. Rg3 {[%emt 0:00:23]} Rh8 {[%emt 0:00:20]} 35. Kb1 {[%emt 0:01:00]} Kd7 {[%emt 0:00:32]} 36. Kc2 {[%emt 0:00:17]} Kc6 {[%emt 0:01:20]} 37. b4 {[%emt 0:00:29]} a5 {[%emt 0:05:22]} 38. Kb3 {[%emt 0:05:42]} axb4 {[%emt 0:00:57]} 39. axb4 {[%emt 0:00:08]} Rh4 {[%emt 0:02:21]} 40. Ka4 {[%emt 0:03:14]} b6 {[%emt 0:05:59]} 41. Rg6+ {[%emt 0:32:57]} Kb7 {[%emt 0:31:16]} 42. Kb5 {[%emt 0:02:44]} Rh5 {[%emt 0:01:32]} 43. Rf6 {[%emt 0:05:23]} bxc5 {[%emt 0:02:54]} 44. bxc5 {[%emt 0:00:55]} Re5 {[%emt 0:01:03]} 45. Rh6 {[%emt 0:03:44]} Re3 {[%emt 0:00:48]} 46. c6+ {[%emt 0:01:26]} Ka7 {[%emt 0:00:47]} 47. Rh7 {[%emt 0:00:33]} Re5+ {[%emt 0:00:33]} 48. Kc4 {[%emt 0:00:47]} Kb6 {[%emt 0:00:21]} 49. Rxh3 {[%emt 0:00:21]} Rc5+ {[%emt 0:01:11]} 50. Kd4 {[%emt 0:00:29]} Rxc6 {[%emt 0:00:29]} 51. Rb3+ {[%emt 0:00:32]} Ka5 {[%emt 0:01:18]} 52. h3 {[%emt 0:04:14]} Rh6 {[%emt 0:02:15]} 53. Kc5 {[%emt 0:00:44]} Ka4 {[%emt 0:00:46]} 54. Rd3 {[%emt 0:00:29]} Rh5+ {[%emt 0:00:00]} 55. Kc6 {[%emt 0:00:00]} Kb4 {[%emt 0:00:00]} 56. Kxc7 {[%emt 0:00:00]} Kc4 {[%emt 0:00:00]} 57. Ra3 {[%emt 0:00:00]} Kd4 {[%emt 0:00:00]} 58. Kd6 {[%emt 0:00:00]} Ke4 {[%emt 0:00:00]} 59. Ke6 {[%emt 0:00:00]} Kf4 {[%emt 0:00:00]} 60. Kf6 {[%emt 0:00:00]} Rh6+ {[%emt 0:00:00]} 61. Kg7 {[%emt 0:00:00]} Rh4 {[%emt 0:00:00]} 62. Kg6 {[%emt 0:00:00]} Rh8 {[%emt 0:00:00]} 63. Ra4+ $11 {[%emt 0:00:00]} Kg3 {[%emt 0:00:00]} 1/2-1/2

[Event "GER-ch Youth U12 2020"]
[Site "Willingen"]
[Date "2020.10.30"]
[Round "5.13"]
[White "Deschler, Arne"]
[Black "Zobel, Christian"]
[Result "0-1"]
[ECO "C26"]
[WhiteElo "1671"]
[BlackElo "1521"]
[Annotator "NA RC"]
[PlyCount "54"]
[EventDate "2020.10.27"]
[EventType "swiss"]
[EventRounds "7"]
[EventCountry "GER"]
[SourceTitle "playchess.com"]
[Source "ChessBase"]
[SourceQuality "1"]
[TimeControl "40/5400+30:1800+30"]

1. e4 {[%emt 0:00:00]} e5 {[%emt 0:00:00]} 2. Bc4 {[%emt 0:00:00]} Nf6 {[%emt 0:00:00]} 3. Nc3 {[%emt 0:00:31]} Bc5 {[%emt 0:01:58]} 4. d3 {[%emt 0:00:31]} c6 {[%emt 0:00:40]} 5. Be3 {[%emt 0:03:45]} Bxe3 {[%emt 0:00:13]} 6. fxe3 {[%emt 0:00:19]} Qb6 {[%emt 0:00:03]} 7. Qc1 {[%emt 0:02:10]} Ng4 {[%emt 0:03:45]} 8. Nd1 {[%emt 0:07:21]} O-O {[%emt 0:06:17]} 9. Nf3 {[%emt 0:01:22]} d6 {[%emt 0:04:39]} 10. h3 {[%emt 0:02:55]} Nf6 {[%emt 0:03:58]} 11. O-O {[%emt 0:02:20]} d5 {[%emt 0:03:40]} 12. exd5 {[%emt 0:01:58]} cxd5 13. Bb3 {[%emt 0:00:45]} Nc6 {[%emt 0:03:41]} 14. Kh2 {[%emt 0:03:24]} Qc7 {[%emt 0:02:24]} 15. Kg1 {[%emt 0:02:55]} e4 {[%emt 0:10:47]} 16. dxe4 {[%emt 0:01:10]} dxe4 {[%emt 0:00:27]} 17. Nd4 {[%emt 0:03:37]} Qg3 {[%emt 0:08:06]} 18. Nxc6 {[%emt 0:05:51]} bxc6 {[%emt 0:01:36]} 19. Nf2 {[%emt 0:03:37]} Ba6 {[%emt 0:09:42]} 20. Rd1 {[%emt 0:07:04]} Be2 {[%emt 0:05:20]} 21. Rd2 {[%emt 0:01:35]} Bh5 {[%emt 0:01:51]} 22. Qe1 {[%emt 0:02:31]} Rad8 {[%emt 0:03:21]} 23. c4 {[%emt 0:01:31]} Bf3 {[%emt 0:00:45]} 24. Nd3 {[%emt 0:03:12]} Qxe1+ {[%emt 0:00:50]} 25. Rxe1 {[%emt 0:00:07]} Bh5 {[%emt 0:00:09]} 26. g4 {[%emt 0:02:59]} Bg6 {[%emt 0:00:06]} 27. g5 {[%emt 0:01:39]} Ne8 {[%emt 0:01:21]} 0-1

[Event "GER-ch Youth U12 2020"]
[Site "Willingen"]
[Date "2020.10.30"]
[Round "5.14"]
[White "Bräutigam, Alexander"]
[Black "Eichhorn, Valentin"]
[Result "0-1"]
[ECO "D35"]
[WhiteElo "1631"]
[BlackElo "1545"]
[Annotator "NA RC"]
[PlyCount "50"]
[EventDate "2020.10.27"]
[EventType "swiss"]
[EventRounds "7"]
[EventCountry "GER"]
[SourceTitle "playchess.com"]
[Source "ChessBase"]
[SourceQuality "1"]
[TimeControl "40/5400+30:1800+30"]

1. d4 {[%emt 0:00:00]} d5 {[%emt 0:00:00]} 2. c4 {[%emt 0:00:00]} e6 {[%emt 0:00:07]} 3. Nc3 {[%emt 0:00:00]} Nf6 {[%emt 0:00:12]} 4. f3 {[%emt 0:00:21]} c5 {[%emt 0:00:43]} 5. e3 {[%emt 0:00:29]} Nc6 {[%emt 0:01:08]} 6. cxd5 {[%emt 0:00:53]} Nxd5 {[%emt 0:02:02]} 7. Bb5 {[%emt 0:00:27]} Qh4+ {[%emt 0:01:07]} 8. g3 {[%emt 0:01:00]} Qh5 {[%emt 0:05:29]} 9. e4 {[%emt 0:01:24]} Nxc3 {[%emt 0:01:45]} 10. bxc3 {[%emt 0:00:52]} cxd4 {[%emt 0:06:41]} 11. Bxc6+ {[%emt 0:03:10]} bxc6 {[%emt 0:00:47]} 12. cxd4 {[%emt 0:01:08]} Bd6 {[%emt 0:06:46]} 13. Kf2 {[%emt 0:01:13]} Qb5 {[%emt 0:05:14]} 14. Be3 {[%emt 0:02:23]} Qb2+ {[%emt 0:05:20]} 15. Ne2 {[%emt 0:01:08]} Ba6 {[%emt 0:03:18]} 16. Qd2 {[%emt 0:02:52]} Qxd2 {[%emt 0:00:42]} 17. Bxd2 {[%emt 0:00:12]} Rb8 {[%emt 0:00:33]} 18. Rab1 {[%emt 0:00:44]} O-O {[%emt 0:00:51]} 19. Ke3 {[%emt 0:01:12]} Rfc8 {[%emt 0:15:29]} 20. Rhc1 {[%emt 0:00:53]} Rxb1 {[%emt 0:00:05]} 21. Rxb1 {[%emt 0:00:23]} c5 {[%emt 0:02:38]} 22. Rc1 {[%emt 0:14:52]} cxd4+ 23. Kxd4 {[%emt 0:01:17]} Rd8 {[%emt 0:16:42]} 24. Ba5 {[%emt 0:01:41]} Bc7+ {[%emt 0:00:55]} 25. Ke3 {[%emt 0:01:29]} Bxa5 0-1